[Event "Late-Titled-Tuesday-Blitz-June-25-2024"]
[Site "Chess.com"]
[Date "2024.06.25"]
[Round "9"]
[White "AlphaPerseii"]
[Black "koncheto"]
[Result "0-1"]
[WhiteElo "2396"]
[BlackElo "2575"]
[TimeControl "180+1"]
[EndTime "15:43:36 PDT"]
[Termination "koncheto won by resignation"]

1. d4 {[%clk 0:03:00.9]} 1... Nf6 {[%clk 0:02:59.8]} 2. c4 {[%clk 0:03:00.8]}
2... e6 {[%clk 0:03:00.3]} 3. Nf3 {[%clk 0:02:58.8]} 3... c5 {[%clk 0:03:00.8]}
4. Nc3 {[%clk 0:02:32.1]} 4... cxd4 {[%clk 0:02:58.3]} 5. Nxd4 {[%clk 0:02:33]}
5... Nc6 {[%clk 0:02:58.9]} 6. g3 {[%clk 0:02:31.2]} 6... a6 {[%clk 0:02:58.8]}
7. Bg2 {[%clk 0:02:30.9]} 7... Qc7 {[%clk 0:02:54.5]} 8. O-O {[%clk 0:02:14.9]}
8... Be7 {[%clk 0:02:47.6]} 9. b3 {[%clk 0:01:44.9]} 9... O-O {[%clk 0:02:46.8]}
10. Bb2 {[%clk 0:01:44.7]} 10... d6 {[%clk 0:02:46.4]} 11. Rc1 {[%clk
0:01:33.8]} 11... Nxd4 {[%clk 0:02:46.5]} 12. Qxd4 {[%clk 0:01:33.8]} 12... Bd7
{[%clk 0:02:47.4]} 13. Rfd1 {[%clk 0:01:31]} 13... Rfd8 {[%clk 0:02:46.5]} 14.
h4 {[%clk 0:01:18.8]} 14... Rac8 {[%clk 0:02:44.4]} 15. Ne4 {[%clk 0:01:11.4]}
15... Bc6 {[%clk 0:02:42.6]} 16. Nxf6+ {[%clk 0:00:43.9]} 16... Bxf6 {[%clk
0:02:42.6]} 17. Qd2 {[%clk 0:00:44.6]} 17... Bxb2 {[%clk 0:02:37]} 18. Qxb2
{[%clk 0:00:44.5]} 18... Qb8 {[%clk 0:02:36.6]} 19. Rd2 {[%clk 0:00:40.3]} 19...
Bxg2 {[%clk 0:02:33.7]} 20. Kxg2 {[%clk 0:00:40.5]} 20... b5 {[%clk 0:02:34.6]}
21. cxb5 {[%clk 0:00:36.3]} 21... axb5 {[%clk 0:02:31.5]} 22. Rcd1 {[%clk
0:00:35.6]} 22... d5 {[%clk 0:02:31.1]} 23. Qd4 {[%clk 0:00:31.3]} 23... Re8
{[%clk 0:02:25.6]} 24. Qb4 {[%clk 0:00:21.9]} 24... h5 {[%clk 0:02:21.4]} 25. a4
{[%clk 0:00:20.7]} 25... bxa4 {[%clk 0:02:21.3]} 26. Qxb8 {[%clk 0:00:19.6]}
26... Rxb8 {[%clk 0:02:22.2]} 27. bxa4 {[%clk 0:00:20.2]} 27... Ra8 {[%clk
0:02:22.8]} 28. Rd4 {[%clk 0:00:19.5]} 28... Rec8 {[%clk 0:02:17]} 29. Rb1
{[%clk 0:00:18.9]} 29... Rc2 {[%clk 0:02:17]} 30. Kf3 {[%clk 0:00:18.3]} 30...
Ra2 {[%clk 0:02:15.8]} 31. Rbb4 {[%clk 0:00:17.7]} 31... g6 {[%clk 0:02:14.3]}
32. Ke3 {[%clk 0:00:15.4]} 32... Rc8 {[%clk 0:02:12.7]} 33. Kf3 {[%clk
0:00:14.2]} 33... Rcc2 {[%clk 0:02:12.1]} 34. Rb8+ {[%clk 0:00:13.3]} 34... Kg7
{[%clk 0:02:06.7]} 35. Kg2 {[%clk 0:00:10.1]} 35... Rxe2 {[%clk 0:02:01.8]} 36.
Rf4 {[%clk 0:00:10.4]} 36... Re4 {[%clk 0:02:02.4]} 37. Rxe4 {[%clk 0:00:10.3]}
37... dxe4 {[%clk 0:02:02.9]} 38. Kf1 {[%clk 0:00:05.6]} 38... Rxa4 {[%clk
0:02:01.3]} 39. Ke2 {[%clk 0:00:06.2]} 39... f5 {[%clk 0:01:54.8]} 40. Rb5
{[%clk 0:00:03.7]} 40... Kf6 {[%clk 0:01:54.6]} 41. Ke3 {[%clk 0:00:03]} 41...
Ra3+ {[%clk 0:01:46.8]} 42. Ke2 {[%clk 0:00:03.4]} 42... f4 {[%clk 0:01:35.6]}
43. gxf4 {[%clk 0:00:01.5]} 43... Rf3 {[%clk 0:01:35.6]} 44. Rb4 {[%clk
0:00:01.7]} 44... Rxf4 {[%clk 0:01:36.1]} 45. f3 {[%clk 0:00:01.4]} 45... exf3+
{[%clk 0:01:35.9]} 0-1

[Event "Late-Titled-Tuesday-Blitz-June-25-2024"]
[Site "Chess.com"]
[Date "2024.06.25"]
[Round "9"]
[White "Zhigalko_Sergei"]
[Black "SaraBlackPanther"]
[Result "0-1"]
[WhiteElo "2936"]
[BlackElo "2752"]
[TimeControl "180+1"]
[EndTime "15:43:38 PDT"]
[Termination "SaraBlackPanther won on time"]

1. e4 {[%clk 0:03:00.9]} 1... c5 {[%clk 0:02:59.2]} 2. Nf3 {[%clk 0:03:01]} 2...
g6 {[%clk 0:02:59.2]} 3. c3 {[%clk 0:03:01.2]} 3... d5 {[%clk 0:02:58.8]} 4.
exd5 {[%clk 0:03:00.6]} 4... Qxd5 {[%clk 0:02:59.7]} 5. d4 {[%clk 0:03:01.1]}
5... Bg7 {[%clk 0:02:59.9]} 6. Na3 {[%clk 0:03:01.1]} 6... cxd4 {[%clk
0:02:58.1]} 7. Bc4 {[%clk 0:03:00.8]} 7... Qe4+ {[%clk 0:02:58.7]} 8. Be3 {[%clk
0:03:01]} 8... Nh6 {[%clk 0:02:58.5]} 9. Nb5 {[%clk 0:03:01]} 9... O-O {[%clk
0:02:55.8]} 10. cxd4 {[%clk 0:03:01.1]} 10... Nf5 {[%clk 0:02:54.2]} 11. Qe2
{[%clk 0:03:00.9]} 11... Nc6 {[%clk 0:02:21.6]} 12. O-O {[%clk 0:03:00.8]} 12...
Nxe3 {[%clk 0:01:51.8]} 13. fxe3 {[%clk 0:02:59.1]} 13... Bg4 {[%clk 0:01:41.5]}
14. Nc3 {[%clk 0:02:34.7]} 14... Bxf3 {[%clk 0:01:40.7]} 15. Rxf3 {[%clk
0:02:29.8]} 15... Qh4 {[%clk 0:01:38.4]} 16. Rf4 {[%clk 0:01:59.2]} 16... Qg5
{[%clk 0:01:33.3]} 17. Raf1 {[%clk 0:01:59.6]} 17... e6 {[%clk 0:01:28.8]} 18.
Ne4 {[%clk 0:01:37.6]} 18... Qe7 {[%clk 0:01:28.8]} 19. Qf3 {[%clk 0:01:04.2]}
19... Na5 {[%clk 0:01:20.8]} 20. Qe2 {[%clk 0:00:55.9]} 20... Nxc4 {[%clk
0:01:18.6]} 21. Qxc4 {[%clk 0:00:56.8]} 21... Rac8 {[%clk 0:01:18.7]} 22. Qb3
{[%clk 0:00:56.7]} 22... b6 {[%clk 0:01:17]} 23. Nf6+ {[%clk 0:00:51.2]} 23...
Kh8 {[%clk 0:01:14.7]} 24. e4 {[%clk 0:00:47.3]} 24... e5 {[%clk 0:01:13.9]} 25.
dxe5 {[%clk 0:00:22.3]} 25... Qxe5 {[%clk 0:01:14.8]} 26. Qh3 {[%clk 0:00:22.3]}
26... Qd4+ {[%clk 0:01:10.2]} 27. Kh1 {[%clk 0:00:21.7]} 27... Bxf6 {[%clk
0:01:09.9]} 28. g3 {[%clk 0:00:01.9]} 28... Bg7 {[%clk 0:01:04.7]} 29. Rxf7
{[%clk 0:00:01.8]} 29... Qxe4+ {[%clk 0:01:04.4]} 30. Kg1 {[%clk 0:00:02]} 30...
Bd4+ {[%clk 0:01:03.7]} 0-1

[Event "Late-Titled-Tuesday-Blitz-June-25-2024"]
[Site "Chess.com"]
[Date "2024.06.25"]
[Round "9"]
[White "romulocardoso"]
[Black "ShimogaTactician"]
[Result "0-1"]
[WhiteElo "2333"]
[BlackElo "2522"]
[TimeControl "180+1"]
[EndTime "15:43:40 PDT"]
[Termination "ShimogaTactician won on time"]

1. e4 {[%clk 0:03:00.9]} 1... g6 {[%clk 0:02:59.3]} 2. Nf3 {[%clk 0:03:00.6]}
2... Bg7 {[%clk 0:02:59.1]} 3. c3 {[%clk 0:03:00.9]} 3... Nf6 {[%clk 0:02:55.3]}
4. Qc2 {[%clk 0:03:00.5]} 4... c5 {[%clk 0:02:51.8]} 5. Be2 {[%clk 0:03:00]}
5... Qc7 {[%clk 0:02:51.1]} 6. O-O {[%clk 0:02:59.8]} 6... d6 {[%clk 0:02:44.7]}
7. d3 {[%clk 0:02:55.9]} 7... Nbd7 {[%clk 0:02:39.9]} 8. Bf4 {[%clk 0:02:54.6]}
8... b6 {[%clk 0:02:37.4]} 9. Nbd2 {[%clk 0:02:47.4]} 9... Bb7 {[%clk
0:02:36.7]} 10. Rac1 {[%clk 0:02:43.6]} 10... Rc8 {[%clk 0:02:32]} 11. Nc4
{[%clk 0:02:32.7]} 11... Nh5 {[%clk 0:02:27]} 12. Bg5 {[%clk 0:01:59.6]} 12...
h6 {[%clk 0:02:24.9]} 13. Bd2 {[%clk 0:01:59.2]} 13... d5 {[%clk 0:02:24.8]} 14.
exd5 {[%clk 0:01:58.9]} 14... Bxd5 {[%clk 0:02:25.7]} 15. Ne3 {[%clk 0:01:59.2]}
15... Bb7 {[%clk 0:02:23.3]} 16. d4 {[%clk 0:01:55.3]} 16... Nf4 {[%clk
0:02:18.6]} 17. Qd1 {[%clk 0:01:44.8]} 17... O-O {[%clk 0:02:13]} 18. Ng4 {[%clk
0:01:37.4]} 18... Rfe8 {[%clk 0:01:45.2]} 19. Re1 {[%clk 0:01:30.2]} 19... h5
{[%clk 0:01:42]} 20. Bxf4 {[%clk 0:01:17.5]} 20... Qxf4 {[%clk 0:01:40.7]} 21.
Nge5 {[%clk 0:01:18.1]} 21... Nxe5 {[%clk 0:01:31.8]} 22. Nxe5 {[%clk 0:01:19]}
22... cxd4 {[%clk 0:01:27.8]} 23. cxd4 {[%clk 0:00:40.7]} 23... Rxc1 {[%clk
0:01:28.7]} 24. Qxc1 {[%clk 0:00:41.2]} 24... Qxd4 {[%clk 0:01:28.8]} 25. Qc7
{[%clk 0:00:41.6]} 25... Bxe5 {[%clk 0:00:52.7]} 26. Qxb7 {[%clk 0:00:40.2]}
26... Bxh2+ {[%clk 0:00:52.9]} 27. Kxh2 {[%clk 0:00:31]} 27... Qxf2 {[%clk
0:00:53.1]} 28. Qd7 {[%clk 0:00:06.7]} 28... Qh4+ {[%clk 0:00:51.6]} 0-1

[Event "Late-Titled-Tuesday-Blitz-June-25-2024"]
[Site "Chess.com"]
[Date "2024.06.25"]
[Round "9"]
[White "Dyadya81"]
[Black "dropstoneDP"]
[Result "0-1"]
[WhiteElo "2801"]
[BlackElo "3015"]
[TimeControl "180+1"]
[EndTime "15:43:46 PDT"]
[Termination "dropstoneDP won by resignation"]

1. e4 {[%clk 0:03:00.9]} 1... e5 {[%clk 0:02:59.7]} 2. Nf3 {[%clk 0:03:00.9]}
2... Nf6 {[%clk 0:02:59.3]} 3. Nc3 {[%clk 0:03:00.8]} 3... Nc6 {[%clk
0:02:59.4]} 4. d4 {[%clk 0:03:00.8]} 4... exd4 {[%clk 0:03:00.3]} 5. Nxd4 {[%clk
0:03:01.3]} 5... Bb4 {[%clk 0:03:00.5]} 6. Nxc6 {[%clk 0:03:01.2]} 6... bxc6
{[%clk 0:03:01.4]} 7. Bd3 {[%clk 0:03:01.4]} 7... O-O {[%clk 0:03:01.9]} 8. O-O
{[%clk 0:03:01.4]} 8... d5 {[%clk 0:03:02.5]} 9. exd5 {[%clk 0:03:01.8]} 9...
cxd5 {[%clk 0:03:03.4]} 10. h3 {[%clk 0:03:02.1]} 10... Re8 {[%clk 0:03:02.7]}
11. Qf3 {[%clk 0:03:00.8]} 11... c6 {[%clk 0:03:01.5]} 12. Bf4 {[%clk
0:02:58.4]} 12... Nd7 {[%clk 0:02:55.9]} 13. Rfe1 {[%clk 0:02:24.2]} 13... Nc5
{[%clk 0:02:55.1]} 14. Rxe8+ {[%clk 0:02:16.6]} 14... Qxe8 {[%clk 0:02:56]} 15.
Bf1 {[%clk 0:02:08.4]} 15... Ne6 {[%clk 0:02:51.3]} 16. Be5 {[%clk 0:01:55.3]}
16... a5 {[%clk 0:02:47.5]} 17. a3 {[%clk 0:01:52.9]} 17... Bf8 {[%clk
0:02:46.1]} 18. Re1 {[%clk 0:01:47.5]} 18... Ba6 {[%clk 0:02:44.6]} 19. Bxa6
{[%clk 0:01:44.6]} 19... Rxa6 {[%clk 0:02:45.5]} 20. Qd3 {[%clk 0:01:41.6]}
20... Ra8 {[%clk 0:02:35.2]} 21. Na4 {[%clk 0:01:38.4]} 21... Rd8 {[%clk
0:02:29.6]} 22. Bc3 {[%clk 0:01:28]} 22... c5 {[%clk 0:02:28.3]} 23. b3 {[%clk
0:01:26.9]} 23... c4 {[%clk 0:02:27]} 24. Qd1 {[%clk 0:01:19.5]} 24... Qb5
{[%clk 0:02:14.7]} 25. Bb2 {[%clk 0:00:45.8]} 25... d4 {[%clk 0:02:06.9]} 26.
Bc1 {[%clk 0:00:38.5]} 26... Qc6 {[%clk 0:01:43]} 27. Qg4 {[%clk 0:00:27.2]}
27... d3 {[%clk 0:01:35.4]} 28. cxd3 {[%clk 0:00:27.3]} 28... cxb3 {[%clk
0:01:34.5]} 29. Nb2 {[%clk 0:00:13.8]} 29... Bxa3 {[%clk 0:01:23.5]} 30. Nc4
{[%clk 0:00:13]} 30... Bxc1 {[%clk 0:01:20.3]} 31. Rxc1 {[%clk 0:00:13.9]} 31...
a4 {[%clk 0:01:19.7]} 32. Ra1 {[%clk 0:00:06.6]} 32... h6 {[%clk 0:01:15.5]} 33.
Qf5 {[%clk 0:00:06.4]} 33... Nd4 {[%clk 0:01:09.2]} 34. Qe4 {[%clk 0:00:05.5]}
34... Qxe4 {[%clk 0:01:08.3]} 35. dxe4 {[%clk 0:00:06]} 35... Ra8 {[%clk
0:01:08.2]} 36. Nb6 {[%clk 0:00:06.1]} 36... b2 {[%clk 0:01:07.1]} 37. Rd1
{[%clk 0:00:02]} 37... a3 {[%clk 0:01:06.7]} 38. Nc4 {[%clk 0:00:02.7]} 38... a2
{[%clk 0:01:05.9]} 0-1

[Event "Late-Titled-Tuesday-Blitz-June-25-2024"]
[Site "Chess.com"]
[Date "2024.06.25"]
[Round "9"]
[White "XDPS"]
[Black "Duhless"]
[Result "0-1"]
[WhiteElo "2829"]
[BlackElo "3092"]
[TimeControl "180+1"]
[EndTime "15:43:47 PDT"]
[Termination "Duhless won by resignation"]

1. e4 {[%clk 0:03:00.9]} 1... e5 {[%clk 0:02:59.9]} 2. Nf3 {[%clk 0:03:00.7]}
2... Nc6 {[%clk 0:03:00.6]} 3. Bc4 {[%clk 0:03:01]} 3... Nf6 {[%clk 0:03:00.2]}
4. d3 {[%clk 0:03:00.5]} 4... Be7 {[%clk 0:03:00.8]} 5. O-O {[%clk 0:03:00.2]}
5... O-O {[%clk 0:03:01.5]} 6. a4 {[%clk 0:03:00.6]} 6... d6 {[%clk 0:03:01.5]}
7. Re1 {[%clk 0:03:00.9]} 7... Be6 {[%clk 0:03:01.1]} 8. Nc3 {[%clk 0:03:00.8]}
8... Bxc4 {[%clk 0:02:59.8]} 9. dxc4 {[%clk 0:03:00.9]} 9... a5 {[%clk
0:03:00.4]} 10. Nd2 {[%clk 0:02:55.2]} 10... Nd7 {[%clk 0:02:58]} 11. Nf1 {[%clk
0:02:55.4]} 11... Bg5 {[%clk 0:02:57.9]} 12. Nd5 {[%clk 0:02:55.4]} 12... Bxc1
{[%clk 0:02:56.9]} 13. Rxc1 {[%clk 0:02:55.7]} 13... Nc5 {[%clk 0:02:55.7]} 14.
b3 {[%clk 0:02:54.8]} 14... Ne7 {[%clk 0:02:56.3]} 15. Nc3 {[%clk 0:02:51.5]}
15... f5 {[%clk 0:02:53]} 16. exf5 {[%clk 0:02:51.6]} 16... Nxf5 {[%clk
0:02:53.8]} 17. Qd2 {[%clk 0:02:50.6]} 17... Kh8 {[%clk 0:02:52.6]} 18. Ne4
{[%clk 0:02:45.5]} 18... b6 {[%clk 0:02:41.8]} 19. Rcd1 {[%clk 0:02:39.6]} 19...
Qe8 {[%clk 0:02:35.3]} 20. Neg3 {[%clk 0:02:35.8]} 20... Nd4 {[%clk 0:02:29.6]}
21. Ne3 {[%clk 0:02:31.7]} 21... Qg6 {[%clk 0:02:28.5]} 22. Qc3 {[%clk
0:02:18.3]} 22... Rf7 {[%clk 0:02:25.8]} 23. Rd2 {[%clk 0:02:17.2]} 23... Raf8
{[%clk 0:02:24.2]} 24. Nd5 {[%clk 0:02:17]} 24... h5 {[%clk 0:01:55.2]} 25. f4
{[%clk 0:01:48.4]} 25... h4 {[%clk 0:01:46.8]} 26. Nf1 {[%clk 0:01:17.3]} 26...
Rxf4 {[%clk 0:01:37.4]} 27. Nxf4 {[%clk 0:01:16.6]} 27... Rxf4 {[%clk
0:01:37.9]} 28. Rxd4 {[%clk 0:00:33.5]} 28... exd4 {[%clk 0:01:17.1]} 29. Qd2
{[%clk 0:00:32.3]} 29... Qf5 {[%clk 0:00:56.9]} 30. Re8+ {[%clk 0:00:25.6]}
30... Kh7 {[%clk 0:00:56.1]} 31. Qe1 {[%clk 0:00:25]} 31... d3 {[%clk
0:00:39.4]} 32. g3 {[%clk 0:00:23.5]} 32... Rxf1+ {[%clk 0:00:31]} 0-1

[Event "Late-Titled-Tuesday-Blitz-June-25-2024"]
[Site "Chess.com"]
[Date "2024.06.25"]
[Round "9"]
[White "esskeettit"]
[Black "klercaku"]
[Result "1-0"]
[WhiteElo "2498"]
[BlackElo "2317"]
[TimeControl "180+1"]
[EndTime "15:43:49 PDT"]
[Termination "esskeettit won by checkmate"]

1. d4 {[%clk 0:03:00.9]} 1... d5 {[%clk 0:03:00.1]} 2. c4 {[%clk 0:03:00.5]}
2... e6 {[%clk 0:03:00.4]} 3. Nc3 {[%clk 0:03:00.7]} 3... Nf6 {[%clk 0:03:00]}
4. cxd5 {[%clk 0:03:01.1]} 4... exd5 {[%clk 0:02:59.9]} 5. Bg5 {[%clk
0:03:01.6]} 5... Nbd7 {[%clk 0:02:59.8]} 6. e3 {[%clk 0:03:02]} 6... c6 {[%clk
0:03:00]} 7. Bd3 {[%clk 0:03:02.3]} 7... Be7 {[%clk 0:02:58.2]} 8. Qc2 {[%clk
0:03:02.4]} 8... O-O {[%clk 0:02:58.8]} 9. Nf3 {[%clk 0:03:02.6]} 9... Re8
{[%clk 0:02:59.3]} 10. O-O {[%clk 0:03:02.7]} 10... Nf8 {[%clk 0:02:59.9]} 11.
h3 {[%clk 0:02:58.3]} 11... Ne4 {[%clk 0:02:58.2]} 12. Bf4 {[%clk 0:02:53.6]}
12... Nf6 {[%clk 0:02:35]} 13. Rab1 {[%clk 0:02:48.8]} 13... Ne6 {[%clk
0:02:34.8]} 14. Bh2 {[%clk 0:02:47]} 14... a5 {[%clk 0:02:26.7]} 15. a3 {[%clk
0:02:45.6]} 15... Bd6 {[%clk 0:02:23.2]} 16. Ne5 {[%clk 0:02:33.9]} 16... Nf8
{[%clk 0:02:13.6]} 17. b4 {[%clk 0:02:30.5]} 17... axb4 {[%clk 0:02:12.5]} 18.
axb4 {[%clk 0:02:31.4]} 18... Ng6 {[%clk 0:02:06]} 19. f4 {[%clk 0:02:30.4]}
19... Qe7 {[%clk 0:01:45.3]} 20. Bg3 {[%clk 0:02:28.9]} 20... Bxb4 {[%clk
0:01:36.6]} 21. Be1 {[%clk 0:01:48.3]} 21... Bd6 {[%clk 0:01:25.1]} 22. Kh1
{[%clk 0:01:45.2]} 22... Nd7 {[%clk 0:01:06.3]} 23. e4 {[%clk 0:01:30.3]} 23...
dxe4 {[%clk 0:01:02.7]} 24. Nxe4 {[%clk 0:01:30.2]} 24... Bxe5 {[%clk
0:00:43.7]} 25. fxe5 {[%clk 0:01:23.3]} 25... Rf8 {[%clk 0:00:35.4]} 26. Nd6
{[%clk 0:01:17.3]} 26... Nb8 {[%clk 0:00:24]} 27. Bc4 {[%clk 0:01:09.3]} 27...
Be6 {[%clk 0:00:21.2]} 28. Rxb7 {[%clk 0:01:09.3]} 28... Qd8 {[%clk 0:00:10.8]}
29. Nxf7 {[%clk 0:01:03.1]} 29... Bxf7 {[%clk 0:00:07.6]} 30. Rbxf7 {[%clk
0:00:58.6]} 30... Rxf7 {[%clk 0:00:04.6]} 31. Bxf7+ {[%clk 0:00:59.5]} 31... Kh8
{[%clk 0:00:03.6]} 32. Bxg6 {[%clk 0:00:59.9]} 32... hxg6 {[%clk 0:00:03.6]} 33.
Qxg6 {[%clk 0:01:00.8]} 33... Nd7 {[%clk 0:00:02.5]} 34. Rf7 {[%clk 0:00:58.5]}
34... Nf8 {[%clk 0:00:01.3]} 35. Qxg7# {[%clk 0:00:58.4]} 1-0

[Event "Late-Titled-Tuesday-Blitz-June-25-2024"]
[Site "Chess.com"]
[Date "2024.06.25"]
[Round "9"]
[White "IsaacWiebe"]
[Black "corvachesky"]
[Result "1-0"]
[WhiteElo "2378"]
[BlackElo "2462"]
[TimeControl "180+1"]
[EndTime "15:43:49 PDT"]
[Termination "IsaacWiebe won on time"]

1. e4 {[%clk 0:02:59.4]} 1... e5 {[%clk 0:00:37.8]} 2. Nf3 {[%clk 0:02:59.5]}
2... Nc6 {[%clk 0:00:37.7]} 3. Bb5 {[%clk 0:02:59.6]} 3... a6 {[%clk 0:00:38.1]}
4. Ba4 {[%clk 0:02:59.6]} 4... Nf6 {[%clk 0:00:38.2]} 5. O-O {[%clk 0:03:00.1]}
5... Be7 {[%clk 0:00:38.8]} 6. Re1 {[%clk 0:03:00.4]} 6... b5 {[%clk 0:00:37.4]}
7. Bb3 {[%clk 0:03:00.6]} 7... O-O {[%clk 0:00:38.3]} 8. c3 {[%clk 0:02:57]}
8... d6 {[%clk 0:00:37.1]} 9. h3 {[%clk 0:02:56.6]} 9... Na5 {[%clk 0:00:37.2]}
10. Bc2 {[%clk 0:02:56.5]} 10... c5 {[%clk 0:00:37.9]} 11. d4 {[%clk 0:02:56.9]}
11... Nd7 {[%clk 0:00:36.7]} 12. Nbd2 {[%clk 0:02:51.2]} 12... Bf6 {[%clk
0:00:36.8]} 13. d5 {[%clk 0:02:47.9]} 13... Re8 {[%clk 0:00:34.9]} 14. Nf1
{[%clk 0:02:46.7]} 14... Nf8 {[%clk 0:00:33.7]} 15. Ng3 {[%clk 0:02:43.1]} 15...
g6 {[%clk 0:00:33.6]} 16. b3 {[%clk 0:02:39]} 16... Nb7 {[%clk 0:00:32.3]} 17.
c4 {[%clk 0:02:36.5]} 17... b4 {[%clk 0:00:32]} 18. Nh2 {[%clk 0:02:23.8]} 18...
a5 {[%clk 0:00:32.5]} 19. Ng4 {[%clk 0:02:20]} 19... Bg7 {[%clk 0:00:32.8]} 20.
Nh6+ {[%clk 0:02:18.2]} 20... Bxh6 {[%clk 0:00:31.8]} 21. Bxh6 {[%clk
0:02:19.1]} 21... Qf6 {[%clk 0:00:30.8]} 22. Qd2 {[%clk 0:02:16.7]} 22... Nd7
{[%clk 0:00:29.8]} 23. Rf1 {[%clk 0:02:16.2]} 23... Nb6 {[%clk 0:00:28.4]} 24.
Bg5 {[%clk 0:02:13.4]} 24... Qg7 {[%clk 0:00:28.2]} 25. Bh6 {[%clk 0:02:13.8]}
25... Qf6 {[%clk 0:00:28]} 26. Rae1 {[%clk 0:02:03]} 26... a4 {[%clk 0:00:27.7]}
27. Bg5 {[%clk 0:02:03.3]} 27... Qg7 {[%clk 0:00:27.6]} 28. Bh6 {[%clk
0:02:03.8]} 28... Qf6 {[%clk 0:00:28]} 29. Kh2 {[%clk 0:01:53.6]} 29... axb3
{[%clk 0:00:28.4]} 30. axb3 {[%clk 0:01:53.7]} 30... Ra2 {[%clk 0:00:28.5]} 31.
Qd3 {[%clk 0:01:51.2]} 31... Bd7 {[%clk 0:00:25.1]} 32. Bd1 {[%clk 0:01:44.8]}
32... Rea8 {[%clk 0:00:24.7]} 33. f4 {[%clk 0:01:38.6]} 33... exf4 {[%clk
0:00:23.8]} 34. Bxf4 {[%clk 0:01:39.1]} 34... Qg7 {[%clk 0:00:22]} 35. e5 {[%clk
0:01:37.8]} 35... Rb2 {[%clk 0:00:20.8]} 36. exd6 {[%clk 0:01:35.2]} 36... Raa2
{[%clk 0:00:19.6]} 37. Re2 {[%clk 0:01:35.7]} 37... Rxe2 {[%clk 0:00:14.9]} 38.
Bxe2 {[%clk 0:01:35.5]} 38... Nc8 {[%clk 0:00:14.8]} 39. Qe3 {[%clk 0:01:25.3]}
39... Ncxd6 {[%clk 0:00:13.9]} 40. Qe7 {[%clk 0:01:25.3]} 40... Be8 {[%clk
0:00:08.1]} 41. Bxd6 {[%clk 0:01:24.9]} 41... Nxd6 {[%clk 0:00:08]} 42. Qxd6
{[%clk 0:01:25.5]} 42... Ra3 {[%clk 0:00:07]} 43. Qe7 {[%clk 0:01:23.9]} 1-0

[Event "Late-Titled-Tuesday-Blitz-June-25-2024"]
[Site "Chess.com"]
[Date "2024.06.25"]
[Round "9"]
[White "Seppppppy"]
[Black "Brown_Mamba24"]
[Result "0-1"]
[WhiteElo "2402"]
[BlackElo "2567"]
[TimeControl "180+1"]
[EndTime "15:43:50 PDT"]
[Termination "Brown_Mamba24 won by checkmate"]

1. d4 {[%clk 0:03:00.9]} 1... Nf6 {[%clk 0:02:59.9]} 2. c4 {[%clk 0:02:59.3]}
2... g6 {[%clk 0:03:00.3]} 3. Nc3 {[%clk 0:02:59.6]} 3... Bg7 {[%clk 0:03:00.9]}
4. e4 {[%clk 0:03:00.1]} 4... d6 {[%clk 0:03:01.6]} 5. h3 {[%clk 0:02:59.7]}
5... O-O {[%clk 0:03:02]} 6. Be3 {[%clk 0:03:00.1]} 6... Na6 {[%clk 0:02:55.8]}
7. g4 {[%clk 0:02:54.8]} 7... c5 {[%clk 0:02:55.6]} 8. d5 {[%clk 0:02:53.8]}
8... e6 {[%clk 0:02:51.4]} 9. Bg2 {[%clk 0:02:54]} 9... exd5 {[%clk 0:02:51.7]}
10. cxd5 {[%clk 0:02:54.9]} 10... b5 {[%clk 0:02:49]} 11. Nge2 {[%clk
0:02:39.4]} 11... Re8 {[%clk 0:02:46.7]} 12. g5 {[%clk 0:02:31.2]} 12... Nd7
{[%clk 0:02:46.6]} 13. Nxb5 {[%clk 0:02:28.8]} 13... Ne5 {[%clk 0:02:46.9]} 14.
O-O {[%clk 0:02:19.5]} 14... Nc4 {[%clk 0:02:43.1]} 15. Bc1 {[%clk 0:01:50.8]}
15... Nxb2 {[%clk 0:02:32.4]} 16. Bxb2 {[%clk 0:01:32.5]} 16... Bxb2 {[%clk
0:02:33.3]} 17. Rb1 {[%clk 0:01:33]} 17... Bg7 {[%clk 0:02:01.1]} 18. f4 {[%clk
0:01:32.3]} 18... Nb4 {[%clk 0:01:52.4]} 19. a3 {[%clk 0:01:25.7]} 19... Ba6
{[%clk 0:01:51.4]} 20. axb4 {[%clk 0:01:06.7]} 20... Bxb5 {[%clk 0:01:50.8]} 21.
bxc5 {[%clk 0:01:07.2]} 21... Qa5 {[%clk 0:01:39.1]} 22. c6 {[%clk 0:00:34.3]}
22... a6 {[%clk 0:01:39.1]} 23. Re1 {[%clk 0:00:25.9]} 23... Qb6+ {[%clk
0:01:37.2]} 24. Kh2 {[%clk 0:00:22]} 24... Qf2 {[%clk 0:01:37.4]} 25. Qd2 {[%clk
0:00:22.5]} 25... h6 {[%clk 0:01:25.9]} 26. Rxb5 {[%clk 0:00:17.5]} 26... axb5
{[%clk 0:01:24.7]} 27. Rf1 {[%clk 0:00:18.1]} 27... Qb6 {[%clk 0:01:18.3]} 28.
gxh6 {[%clk 0:00:16.7]} 28... Bxh6 {[%clk 0:01:18.3]} 29. Ng3 {[%clk 0:00:17.1]}
29... b4 {[%clk 0:01:16.6]} 30. Qb2 {[%clk 0:00:11.8]} 30... Bg7 {[%clk
0:01:16]} 31. Qb3 {[%clk 0:00:10.2]} 31... Ra3 {[%clk 0:01:16.1]} 32. Qc2 {[%clk
0:00:07.6]} 32... b3 {[%clk 0:01:15.2]} 33. Qc4 {[%clk 0:00:06.8]} 33... b2
{[%clk 0:01:13.5]} 34. f5 {[%clk 0:00:05.7]} 34... b1=Q {[%clk 0:01:00.9]} 35.
Rxb1 {[%clk 0:00:03.9]} 35... Qxb1 {[%clk 0:01:01.8]} 36. fxg6 {[%clk
0:00:04.2]} 36... Be5 {[%clk 0:01:01]} 37. gxf7+ {[%clk 0:00:04.3]} 37... Kxf7
{[%clk 0:01:01]} 38. c7 {[%clk 0:00:01.3]} 38... Bxg3# {[%clk 0:01:00.3]} 0-1